fUSD/lending_fUSD_20260410
["ID","MTS","AMOUNT","RATE_DAILY","PERIOD"]
[420228454,1775819288754,405.0,8.897e-05,3]
[420228455,1775819347281,385.0,8.897e-05,3]
[420228456,1775819411609,366.0,8.897e-05,3]
[420228457,1775819413242,157.0,8.897e-05,3]
[420228461,1775819434277,-881.86849656,0.000105,5]
[420228462,1775819434311,-313.13150344,0.000105,5]
[420228463,1775819434322,-366.0,0.00010876,3]
[420228464,1775819434338,-1881.96,0.00011218,2]
[420228465,1775819434352,-1886.01201217,0.00011573,2]
[420228466,1775819434372,-1355.86495638,0.00011573,2]
[420228467,1775819434395,-1881.96,0.00011604,2]
[420228468,1775819434408,-1881.96,0.00011991,2]
[420228469,1775819434419,-150.0,0.000123,2]
[420228470,1775819434431,-1881.96,0.00012378,2]
[420228471,1775819434452,-38014.73264589,0.00012512,2]
[420228472,1775819434468,-18187.58576566,0.00012512,2]
[420228473,1775819434494,-789.06159669,0.00012512,2]
[420228474,1775819437742,-68000.00000009,0.00012512,2]
[420228475,1775819437959,-14874.77871975,0.00012512,2]
[420228476,1775819437975,-21620.98652871,0.00012512,2]
[420228477,1775819437995,-1335.68020852,0.00012512,2]
[420228538,1775819439831,-2522.40838058,0.00012512,2]
[420228539,1775819441000,-3415.38041526,0.00012512,2]
[420228540,1775819441016,-591.05392624,0.00012512,2]
[420228560,1775819442948,-4692.56437331,0.00012512,2]
[420228563,1775819443047,-2090.22097912,0.00012512,2]
[420228564,1775819443080,-423.0,0.00012512,2]
[420228565,1775819443094,-901.48698902,0.00012512,2]
[420228566,1775819443107,-18.14677116,0.00012512,2]
[420228567,1775819443121,-150.0,0.00012611,2]
[420228568,1775819443133,-2696.74503824,0.00012612,2]
[420228569,1775819443145,-65612.43566176,0.00012612,2]
[420228570,1775819443165,-9002.6,0.0001274,2]
[420228571,1775819443177,-829.55,0.00012747,2]
[420228572,1775819443188,-184.38,0.00012753,3]
[420228573,1775819443207,-1889.88,0.00012753,2]
[420228574,1775819443223,-1881.96,0.00012765,2]
[420228575,1775819443232,-1600.0,0.00012788,2]
[420228576,1775819443246,-366.0,0.00012856,3]
[420228577,1775819443257,-250.0,0.00013,2]
[420228578,1775819443273,-239.93826957,0.00013,2]
[420228580,1775819443287,-150.0,0.00013042,2]
[420228581,1775819443299,-26782.44603784,0.00013066,2]
[420228585,1775819445500,-524.83280632,0.00013066,2]
[420228586,1775819445546,-532.03115584,0.00013066,2]
[420228587,1775819445557,-509.0,0.000131,2]
[420228588,1775819445578,-1881.96,0.00013152,2]
[420228589,1775819445587,-3585.49,0.00013161,2]
[420228590,1775819445596,-232.05,0.00013248,2]
[420228591,1775819445610,-239.9382695,0.00013322,2]
[420228592,1775819445628,-1881.96,0.00013539,2]
[420228593,1775819445637,-174.4255,0.000136,2]
[420228594,1775819445652,-239.9382695,0.00013644,2]
[420228595,1775819445665,-1000.0,0.00013699,2]
[420228596,1775819445675,-1881.96,0.00013925,2]
[420228597,1775819445684,-239.9382695,0.00013967,2]
[420228598,1775819445699,-239.9382695,0.00014289,2]
[420228599,1775819445713,-1881.96,0.00014312,2]
[420228600,1775819445723,-1600.0,0.00014386,2]
[420228601,1775819445734,-239.9382695,0.00014611,2]
[420228602,1775819445744,-1881.96,0.00014699,2]
[420228603,1775819445757,-366.0,0.00014835,3]
[420228604,1775819445767,-14638.94,0.00014843,2]
[420228605,1775819445780,-202.8285,0.000149,2]
[420228606,1775819445789,-829.55,0.0001491,2]
[420228607,1775819445804,-239.9382695,0.00014933,2]
[420228608,1775819445816,-2358.4,0.00014961,2]
[420228609,1775819445829,-16853.79964564,0.00015,3]
[420228610,1775819445839,-300.0,0.00015,2]
[420228611,1775819445850,-701.52,0.00015,2]
[420228612,1775819445862,-6902.88518477,0.00015,2]
[420228613,1775819445879,-8245.67458104,0.00015,2]
[420228614,1775819445914,-4670.60698737,0.00015,2]
[420228615,1775819445925,-2500.0132421,0.00015,2]
[420228618,1775819587034,-1000.0,0.00012512,2]
[420228619,1775819588840,-1000.0,0.00012512,2]
[420228620,1775819588935,-1000.0,0.00012512,2]
[420228621,1775819590445,-1000.0,0.00012512,2]
[420228622,1775819590532,-160.4293,0.00012512,2]
[420228623,1775819590565,-839.5707,0.00012512,2]
[420228624,1775819590664,-1000.0,0.00012512,2]
[420228625,1775819590736,-1000.0,0.00012512,2]
[420228626,1775819590812,-1000.0,0.00012512,2]
[420228627,1775819591281,-1000.0,0.00012512,2]
[420228628,1775819591489,-1000.0,0.00012512,2]
[420228629,1775819592156,-1000.0,0.00012512,2]
[420228630,1775819592524,-1000.0,0.00012512,2]
[420228631,1775819592835,-1000.0,0.00012512,2]
[420228632,1775819593203,-1000.0,0.00012512,2]
[420228633,1775819593285,-1000.0,0.00012512,2]
[420228634,1775819593500,-1000.0,0.00012512,2]
[420228635,1775819593957,-1000.0,0.00012512,2]
[420228636,1775819594232,-1000.0,0.00012512,2]
[420228637,1775819594587,-1000.0,0.00012512,2]
[420228638,1775819594983,-1000.0,0.00012512,2]
[420228639,1775819595244,-1000.0,0.00012512,2]
[420228640,1775819595603,-1000.0,0.00012512,2]
[420228641,1775819596002,-1000.0,0.00012512,2]
[420228642,1775819596289,-1000.0,0.00012512,2]
[420228643,1775819596722,-1000.0,0.00012512,2]
[420228644,1775819597173,-1000.0,0.00012512,2]
[420228645,1775819597561,-1000.0,0.00012512,2]
[420228646,1775819597909,-1000.0,0.00012512,2]
[420228647,1775819598344,-1000.0,0.00012512,2]
[420228648,1775819601566,-1000.0,0.00012512,2]
[420228649,1775819603021,-1000.0,0.00012512,2]
[420228650,1775819604082,-1000.0,0.00012512,2]
[420228651,1775819610174,-417.0,0.00012512,2]
[420228653,1775820415288,-155.32384705,0.00011015,2]
[420228658,1775820631757,-21.07615295,0.00011015,2]
[420228659,1775820631767,-316.0,0.00012512,3]
[420228660,1775820631778,-158.0,0.00012512,3]
[420228661,1775820631787,-156.0,0.00012512,3]
[420228662,1775820631802,-1000.0,0.00012512,2]
[420228663,1775820631812,-509.0,0.000131,2]
[420228664,1775820631825,-153.83,0.00013386,2]
[420228665,1775820631836,-39198.4129,0.00013387,2]
[420228666,1775820631857,-1375.96606472,0.00013403,2]
[420228667,1775820631869,-185.64,0.00013407,2]
[420228668,1775820631884,-16004.2105,0.00013465,2]
[420228669,1775820631911,-151.0,0.00013479,2]
[420228670,1775820631923,-151.0,0.00013479,2]
[420228671,1775820631956,-151.0,0.00013479,2]
[420228672,1775820631975,-151.0,0.00013479,2]
[420228673,1775820632011,-151.0,0.00013479,2]
[420228674,1775820632070,-151.0,0.00013479,2]
[420228675,1775820632114,-151.0,0.00013479,2]
[420228676,1775820632161,-151.0,0.00013479,2]
[420228677,1775820632191,-151.0,0.00013479,2]
[420228678,1775820632216,-151.0,0.00013479,2]
[420228679,1775820632252,-161.77898451,0.00013479,2]
[420228680,1775820632289,-200.0,0.00013479,2]
[420228681,1775820632309,-150.0,0.00013486,2]
[420228682,1775820632330,-42433.6991677,0.00013487,2]
[420228683,1775820632344,-947.74,0.00013529,2]
[420228684,1775820632367,-3240.0,0.00013565,2]
[420228685,1775820632381,-1500.0,0.00013647,2]
[420228686,1775820632391,-2711.1039,0.00013652,2]
[420228687,1775820632409,-200.0,0.00013664,2]
[420228688,1775820632419,-166.66,0.00013699,2]
[420228689,1775820632428,-200.0,0.00013699,2]
[420228690,1775820632438,-2072.92,0.00013752,2]
[420228691,1775820632459,-19584.75,0.00013804,2]
[420228692,1775820632468,-150.0,0.000139,2]
[420228693,1775820632478,-150.0,0.00013955,2]
[420228694,1775820632487,-166.66,0.00013974,2]
[420228695,1775820632497,-500.0,0.00014087,2]
[420228696,1775820632507,-6489.0032768,0.00014096,2]
[420228697,1775820632516,-1061.4887141,0.00014106,2]
[420228698,1775820632525,-3514.9730926,0.00014106,2]
[420228699,1775820632535,-2000.0,0.00014173,2]
[420228700,1775820632545,-166.66,0.00014249,2]
[420228701,1775820632555,-316.0,0.00014301,3]
[420228702,1775820632564,-166.66,0.00014525,2]
[420228703,1775820632573,-403.86310929,0.00014551,2]
[420228704,1775820632582,-304.21673453,0.00014551,2]
[420228705,1775820632593,-362.41940288,0.00014551,2]
[420228706,1775820632601,-166.66,0.000148,2]
[420228707,1775820632611,-427.0239,0.00014877,2]
[420228708,1775820632620,-1312.46695928,0.000149,2]
[420228709,1775820632630,-1300.0,0.000149,3]
[420228710,1775820632640,-1400.0,0.000149,5]
[420228711,1775820632649,-200.0,0.000149,5]
[420228712,1775820632658,-1000.06481548,0.00015,2]
[420228713,1775820632668,-150.0,0.00015,2]
[420228714,1775820632679,-500.0,0.00015,2]
[420228715,1775820632688,-166.66,0.00015076,2]
[420228716,1775820632698,-150.0,0.00015078,2]
[420228717,1775820632707,-224.88894205,0.00015078,2]
[420228718,1775820632716,-150.0,0.00015078,2]
[420228719,1775820632728,-174.3127,0.000151,2]
[420228720,1775820632739,-512.18676922,0.000151,2]
[420228721,1775820632748,-500.0,0.00015132,2]
[420228722,1775820632757,-500.0,0.00015132,2]
[420228723,1775820632767,-500.0,0.00015132,2]
[420228724,1775820632781,-500.0,0.00015132,2]
[420228725,1775820632790,-500.0,0.00015132,2]
[420228726,1775820632801,-500.0,0.00015132,2]
[420228727,1775820632810,-500.0,0.00015132,2]
[420228728,1775820632830,-500.0,0.00015132,2]
[420228729,1775820632839,-500.0,0.00015132,2]
[420228730,1775820632855,-500.0,0.00015132,2]
[420228731,1775820632868,-500.0,0.00015132,2]
[420228732,1775820632877,-500.0,0.00015132,2]
[420228733,1775820632890,-394.89077338,0.00015132,2]
[420228734,1775820632908,-1671.0,0.00015132,2]
[420228735,1775820632920,-246.66771091,0.00015154,2]
[420228736,1775820632932,-1105.87363864,0.00015165,2]
[420228737,1775820632954,-5000.0,0.00015165,2]
[420228738,1775820632967,-1122.29766997,0.00015165,2]
[420228739,1775820633000,-1377.70233003,0.00015165,2]
[420228740,1775820633015,-512.18676914,0.00015189,2]
[420228741,1775820633033,-8100.94473701,0.00015199,2]
[420228742,1775820633065,-1367.29335389,0.00015199,2]
[420228743,1775820633088,-2800.0,0.000152,5]
[420228744,1775820633114,-400.0,0.000152,5]
[420228745,1775820633127,-1105.87363864,0.00015247,2]
[420228746,1775820633156,-500.0,0.00015264,2]
[420228747,1775820633169,-500.0,0.00015264,2]
[420228748,1775820633180,-579.82833327,0.00015264,2]
[420228749,1775820633195,-202.89511705,0.00015264,2]
[420228750,1775820633206,-500.0,0.00015264,2]
[420228751,1775820633215,-500.0,0.00015264,2]
[420228752,1775820633228,-496.74231492,0.00015264,2]
[420228753,1775820633238,-500.0,0.00015264,2]
[420228754,1775820633249,-178.19802918,0.00015264,2]
[420228755,1775820633258,-360.84149265,0.00015264,2]
[420228756,1775820633276,-500.0,0.00015264,2]
[420228757,1775820633287,-500.0,0.00015264,2]
[420228758,1775820633298,-500.0,0.00015264,2]
[420228759,1775820633313,-500.0,0.00015264,2]
[420228760,1775820633327,-500.0,0.00015264,2]
[420228761,1775820633338,-182.33872237,0.00015264,2]
[420228762,1775820633352,-500.0,0.00015264,2]
[420228763,1775820633373,-500.0,0.00015264,2]
[420228764,1775820633382,-500.0,0.00015264,2]
[420228765,1775820633396,-500.0,0.00015264,2]
[420228766,1775820633425,-500.0,0.00015264,2]
[420228767,1775820633435,-500.0,0.00015264,2]
[420228768,1775820633480,-500.0,0.00015264,2]
[420228769,1775820633519,-500.0,0.00015264,2]
[420228770,1775820633552,-500.0,0.00015264,2]
[420228771,1775820633605,-500.0,0.00015264,2]
[420228772,1775820633638,-500.0,0.00015264,2]
[420228773,1775820633663,-500.0,0.00015264,2]
[420228774,1775820633676,-203.87681443,0.00015264,2]
[420228775,1775820634805,-296.12318557,0.00015264,2]
[420228776,1775820634827,-500.0,0.00015264,2]
[420228777,1775820634838,-500.0,0.00015264,2]
[420228778,1775820634849,-500.0,0.00015264,2]
[420228779,1775820634857,-500.0,0.00015264,2]
[420228780,1775820634870,-500.0,0.00015264,2]
[420228781,1775820634878,-500.0,0.00015264,2]
[420228782,1775820634891,-500.0,0.00015264,2]
[420228783,1775820634900,-500.0,0.00015264,2]
[420228784,1775820634913,-132.62065521,0.00015264,2]
[420228785,1775820638041,-90.03407598,0.00015264,2]
[420228786,1775820638052,-500.0,0.00015264,2]
[420228787,1775820638062,-402.32059687,0.00015264,2]
[420228788,1775820638072,-7.64532715,0.00015264,2]
[420228802,1775820640472,-0.83998762,0.00015264,2]
[420228803,1775820640491,-572.73539729,0.00015264,2]
[420228804,1775820640498,-268.07140108,0.00015264,2]
[420228805,1775820640648,-200.0,0.000149,5]
[420228806,1775820640655,-313.14931098,0.00015264,2]
[420228807,1775820640663,-581.22071206,0.00015264,2]
[420228808,1775820640671,-581.22071206,0.00015264,2]
[420228809,1775820640686,-297.51655122,0.00015264,2]
[420228813,1775820643225,-500.0,0.000152,5]
[420228814,1775820643252,-283.70416084,0.00015264,2]
[420228815,1775820643265,-581.22071206,0.00015264,2]
[420228816,1775820643282,-581.22071206,0.00015264,2]
[420228817,1775820643294,-581.22071206,0.00015264,2]
[420228818,1775820643308,-581.22071206,0.00015264,2]
[420228820,1775820643318,-581.22071206,0.00015264,2]
[420228822,1775820643329,-581.22071206,0.00015264,2]
[420228823,1775820643339,-581.22071206,0.00015264,2]
[420228824,1775820643352,-581.22071206,0.00015264,2]
[420228825,1775820643361,-581.22071206,0.00015264,2]
[420228826,1775820643371,-581.22071206,0.00015264,2]
[420228827,1775820643380,-581.22071206,0.00015264,2]
[420228828,1775820643389,-581.22071206,0.00015264,2]
[420228829,1775820643399,-581.22071206,0.00015264,2]
[420228830,1775820643411,-581.22071206,0.00015264,2]
[420228831,1775820643421,-581.22071206,0.00015264,2]
[420228832,1775820643430,-581.22071206,0.00015264,2]
[420228833,1775820643440,-581.22071206,0.00015264,2]
[420228834,1775820643451,-581.22071206,0.00015264,2]
[420228835,1775820643461,-581.22071206,0.00015264,2]
[420228836,1775820643470,-581.22071206,0.00015264,2]
[420228837,1775820643482,-581.22071206,0.00015264,2]
[420228838,1775820643492,-581.22071206,0.00015264,2]
[420228839,1775820643501,-581.22071206,0.00015264,2]
[420228840,1775820643511,-581.22071206,0.00015264,2]
[420228841,1775820643522,-581.22071206,0.00015264,2]
[420228842,1775820643531,-581.22071206,0.00015264,2]
[420228843,1775820643540,-108.77587569,0.00015264,2]
[420228844,1775820643553,-472.44483637,0.00015264,2]
[420228845,1775820643565,-581.22071206,0.00015264,2]
[420228846,1775820643575,-581.22071206,0.00015264,2]
[420228847,1775820643585,-581.22071206,0.00015264,2]
[420228848,1775820643594,-581.22071206,0.00015264,2]
[420228849,1775820643606,-581.22071206,0.00015264,2]
[420228850,1775820643616,-247.85171947,0.00015264,2]
[420228851,1775820643627,-333.07245141,0.00015264,2]
[420228852,1775820643637,-580.92417088,0.00015264,2]
[420228853,1775820643646,-580.92417088,0.00015264,2]
[420228854,1775820643658,-580.92417088,0.00015264,2]
[420228856,1775820643670,-580.92417088,0.00015264,2]
[420228858,1775820643679,-580.92417088,0.00015264,2]
[420228859,1775820643688,-580.92417088,0.00015264,2]
[420228860,1775820643700,-580.92417088,0.00015264,2]
[420228861,1775820643710,-580.92417088,0.00015264,2]
[420228862,1775820643720,-580.92417088,0.00015264,2]
[420228863,1775820643729,-580.92417088,0.00015264,2]
[420228864,1775820643740,-580.92417088,0.00015264,2]
[420228865,1775820643750,-580.92417088,0.00015264,2]
[420228866,1775820643759,-580.92417088,0.00015264,2]
[420228867,1775820643768,-580.92417088,0.00015264,2]
[420228868,1775820643777,-580.92417088,0.00015264,2]
[420228869,1775820643787,-580.92417088,0.00015264,2]
[420228870,1775820643796,-580.92417088,0.00015264,2]
[420228871,1775820643805,-580.92417088,0.00015264,2]
[420228872,1775820643815,-135.18039958,0.00015264,2]
[420228873,1775820643826,-445.7437713,0.00015264,2]
[420228874,1775820643836,-580.92417088,0.00015264,2]
[420228875,1775820643845,-419.00277607,0.00015264,2]
[420228879,1775820646078,-390.18089584,0.00015165,2]
[420228880,1775820646088,-161.92139481,0.00015264,2]
[420228881,1775820646098,-580.92417088,0.00015264,2]
[420228882,1775820646107,-580.92417088,0.00015264,2]
[420228883,1775820646115,-426.06504551,0.00015264,2]
[420228884,1775820646132,-154.85912537,0.00015264,2]
[420228885,1775820646140,-580.92417088,0.00015264,2]
[420228886,1775820646150,-580.92417081,0.00015264,2]
[420228887,1775820646158,-580.92417081,0.00015264,2]
[420228888,1775820646167,-151.0,0.00015265,2]
[420228889,1775820646176,-128.16601363,0.00015265,2]
[420228890,1775820646196,-22.83398637,0.00015265,2]
[420228891,1775820646204,-151.0,0.00015265,2]
[420228892,1775820646214,-152.407926,0.00015265,2]
[420228893,1775820646222,-118.95494944,0.00015265,2]
[420228900,1775821832079,-250.0,0.00013,2]
[420228901,1775821832090,-272.0,0.00013,2]
[420228902,1775821832113,-510.0,0.000131,2]
[420228903,1775821832125,-172.04,0.000132,2]
[420228904,1775821832136,-788.07,0.00013406,2]
[420228905,1775821832156,-2812.3644,0.00013552,2]
[420228906,1775821832169,-292.17075199,0.0001371,2]
[420228907,1775821832182,-300.0,0.00013737,2]
[420228908,1775821832203,-16908.7,0.00013738,2]
[420228909,1775821832218,-1600.0,0.00013773,2]
[420228910,1775821832227,-150.0,0.000138,2]
[420228911,1775821832245,-15552.36,0.00013821,2]
[420228912,1775821832261,-532.03,0.00013856,2]
[420228913,1775821832270,-7611.29,0.00013915,2]
[420228914,1775821832286,-271.0,0.00013941,2]
[420228915,1775821832301,-154.0,0.00013969,2]
[420228916,1775821832311,-627.0,0.0001397,2]
[420228917,1775821832322,-417.0,0.00013996,2]
[420228918,1775821832332,-457.0,0.00013998,2]
[420228919,1775821832341,-4165.06,0.00014042,2]
[420228920,1775821832351,-1000.0,0.00014042,2]
[420228921,1775821832360,-217.0,0.00014098,2]
[420228922,1775821832370,-259.0,0.00014126,2]
[420228923,1775821832381,-265.0,0.00014154,2]
[420228924,1775821832392,-431.0,0.00014183,2]
[420228925,1775821832401,-1578.0,0.00014201,2]
[420228926,1775821832412,-287.0,0.00014211,2]
[420228927,1775821832421,-2358.4,0.00014216,2]
[420228928,1775821832431,-260.0,0.0001423,2]
[420228929,1775821832442,-152.0,0.00014239,2]
[420228930,1775821832452,-1864.0,0.00014258,2]
[420228931,1775821832464,-378.0,0.00014267,2]
[420228932,1775821832473,-155.83,0.00014289,2]
[420228933,1775821832487,-487.0,0.00014295,2]
[420228934,1775821832501,-150.0,0.00014299,2]
[420228935,1775821832517,-324.43,0.000143,2]
[420228936,1775821832527,-2500.0,0.000143,2]
[420228937,1775821832536,-2500.0,0.000143,2]
[420228938,1775821832551,-2500.0,0.000143,2]
[420228939,1775821832575,-2500.0,0.000143,2]
[420228940,1775821832586,-2053.64950293,0.000143,2]
[420228941,1775821832596,-300.0,0.000143,2]
[420228942,1775821832605,-300.0,0.000143,2]
[420228943,1775821832617,-300.0,0.000143,2]
[420228944,1775821832627,-300.0,0.000143,2]
[420228945,1775821832636,-386.03664864,0.000143,2]
[420228946,1775821832647,-276.42,0.00014391,2]
[420228947,1775821832657,-348.30120569,0.00014526,2]
[420228948,1775821832667,-324.43,0.00014574,2]
[420228949,1775821832676,-597.62670957,0.00014679,2]
[420228950,1775821832686,-649.17989117,0.00014682,2]
[420228951,1775821832697,-165.6,0.00014732,2]
[420228952,1775821832708,-500.0,0.00014732,2]
[420228953,1775821832717,-648.05542606,0.000148,2]
[420228954,1775821832727,-309.27441445,0.00014833,2]
[420228955,1775821832738,-151.0,0.00014844,2]
[420228956,1775821832748,-3082.9371,0.00014847,2]
[420228957,1775821832758,-1435.904,0.00014847,2]
[420228958,1775821832769,-162.987,0.00014847,2]
[420228959,1775821832778,-884.69891093,0.00014847,2]
[420228960,1775821832793,-916.95338188,0.00014847,2]
[420228961,1775821832803,-390.18089584,0.00014847,2]
[420228962,1775821832814,-3522.26233583,0.00014847,2]
[420228963,1775821832830,-11061.85460766,0.00014847,2]
[420228964,1775821832849,-29527.4134285,0.00014847,2]
[420228965,1775821832860,-413.75872801,0.00014847,2]
[420228966,1775821832872,-700.3765,0.00014847,2]
[420228967,1775821832890,-324.43,0.00014848,2]
[420228968,1775821832899,-2000.0,0.000149,5]
[420228969,1775821832909,-155.0,0.00014946,2]
[420228970,1775821832932,-500.0,0.00014946,2]
[420228971,1775821832942,-252.58904485,0.00014946,2]
[420228972,1775821832959,-500.0,0.00014946,2]
[420228973,1775821832978,-500.0,0.00014946,2]
[420228974,1775821832992,-605.87983329,0.00014946,2]
[420228975,1775821833016,-397.71962045,0.00014946,2]
[420228976,1775821833046,-500.0,0.00014946,2]
[420228977,1775821833082,-500.0,0.00014946,2]
[420228978,1775821833111,-500.0,0.00014946,2]
[420228979,1775821833125,-500.0,0.00014946,2]
[420228980,1775821833147,-500.0,0.00014946,2]
[420228981,1775821833171,-500.0,0.00014946,2]
[420228982,1775821833196,-500.0,0.00014946,2]
[420228983,1775821833218,-500.0,0.00014946,2]
[420228984,1775821833260,-500.0,0.00014946,2]
[420228985,1775821833273,-500.0,0.00014946,2]
[420228986,1775821833290,-500.0,0.00014946,2]
[420228987,1775821833314,-369.16350687,0.00014946,2]
[420228988,1775821833334,-500.0,0.00014946,2]
[420228989,1775821833356,-500.0,0.00014946,2]
[420228990,1775821833368,-500.0,0.00014946,2]
[420228991,1775821833378,-500.0,0.00014946,2]
[420228992,1775821833401,-500.0,0.00014946,2]
[420228993,1775821833410,-500.0,0.00014946,2]
[420228994,1775821833429,-500.0,0.00014946,2]
[420228995,1775821833443,-500.0,0.00014946,2]
[420228996,1775821833453,-500.0,0.00014946,2]
[420228997,1775821833469,-500.0,0.00014946,2]
[420228998,1775821833480,-402.12927854,0.00014946,2]
[420228999,1775821833489,-500.0,0.00014946,2]
[420229000,1775821833499,-500.0,0.00014946,2]
[420229001,1775821833515,-500.0,0.00014946,2]
[420229002,1775821833524,-500.0,0.00014946,2]
[420229003,1775821833533,-500.0,0.00014946,2]
[420229004,1775821833542,-500.0,0.00014946,2]
[420229005,1775821833555,-500.0,0.00014946,2]
[420229006,1775821833564,-500.0,0.00014946,2]
[420229007,1775821833573,-500.0,0.00014946,2]
[420229008,1775821833582,-574.85130387,0.00014946,2]
[420229009,1775821833591,-500.0,0.00014946,2]
[420229010,1775821833601,-151.0,0.00014947,2]
[420229011,1775821833610,-151.0,0.00014947,2]
[420229012,1775821833619,-153.374843,0.00014947,2]
[420229013,1775821833628,-233.38866546,0.00014947,2]
[420229014,1775821833637,-151.0,0.00014947,2]
[420229015,1775821833647,-151.0,0.00014947,2]
[420229016,1775821833656,-151.0,0.00014947,2]
[420229017,1775821833666,-151.0,0.00014947,2]
[420229018,1775821833675,-151.0,0.00014947,2]
[420229019,1775821833684,-151.0,0.00014947,2]
[420229020,1775821833693,-151.0,0.00014947,2]
[420229021,1775821833702,-151.0,0.00014947,2]
[420229022,1775821833712,-151.0,0.00014947,2]
[420229023,1775821833721,-151.0,0.00014947,2]
[420229024,1775821833731,-151.0,0.00014947,2]
[420229025,1775821833740,-151.0,0.00014947,2]
[420229026,1775821833749,-500.0,0.00014947,2]
[420229027,1775821833759,-500.0,0.00014947,2]
[420229028,1775821833769,-10403.5772518,0.00014947,2]
[420229029,1775821834965,-1254.41808677,0.00014947,2]
[420229035,1775821838282,-673.0,0.00013893,2]
[420229036,1775821838300,-2494.57565849,0.00014947,2]
[420229037,1775821838320,-400.0,0.00014947,2]
[420229038,1775821838347,-64935.99999999,0.00014947,2]
[420229039,1775821838676,-36091.50000001,0.00014947,2]
[420229040,1775821838719,-915.68216476,0.00014947,2]
[420229048,1775821843275,-18812.55486673,0.00014947,2]
[420229049,1775821843388,-344.66,0.00014947,2]
[420229052,1775821846374,-2325.53959522,0.00014947,2]
[420229064,1775822337823,1010.44,6.726e-05,2]
[420229065,1775822338039,1010.44,7.08e-05,2]
[420229066,1775822338243,1010.44,7.434e-05,2]
[420229067,1775822338473,1010.44,7.788e-05,2]
[420229068,1775822338681,958.25,8.143e-05,2]
[420229069,1775822338710,52.19,8.143e-05,2]
[420229070,1775822338905,1010.44,8.497e-05,2]
[420229071,1775822339127,1010.44,8.851e-05,2]
[420229072,1775822339340,1010.44,9.205e-05,2]
[420229073,1775822339532,1010.44,9.559e-05,2]
[420229074,1775822339795,906.06,9.913e-05,2]
[420229075,1775822339835,104.38,9.913e-05,2]
[420229076,1775822339951,1010.44,0.00010267,2]
[420229077,1775822357479,176.39,0.00010364,2]
[420229079,1775822650300,-1010.44,0.00010621,2]
[420229080,1775822650957,-0.01,0.00010621,2]
[420229081,1775822653318,-0.02,0.00010621,2]
[420229082,1775822653534,-1687.86,0.00010621,2]
[420229083,1775822653592,-1687.9,0.00010621,2]
[420229084,1775822653660,-1624.21,0.00010621,2]
[420229085,1775822656943,-426.64483273,0.00010621,2]
[420229086,1775822657005,-0.01,0.00010833,2]
[420229087,1775822657164,-4146.71033454,0.00010833,2]
[420229088,1775822657187,-853.27966546,0.00010833,2]
[420229089,1775822657194,-4146.72033454,0.00010833,2]
[420229090,1775822659347,-853.27966546,0.00010833,2]
[420229091,1775822659410,-3293.45066908,0.00010833,2]
[420229092,1775822659563,-1706.54933092,0.00010833,2]
[420229093,1775822659603,-576.47133816,0.00010975,2]
[420229094,1775822659664,-433.96866184,0.00010975,2]
[420229095,1775822662226,-309.31236431,9.833e-05,2]
[420229096,1775822662265,-150.0,0.00010975,7]
[420229097,1775822662307,-426.64483273,0.00010975,2]
[420229098,1775822662357,-1010.44,0.00011329,2]
[420229099,1775822662399,-426.64483273,0.00011683,2]
[420229100,1775822662465,-160.92594046,0.00011683,2]
[420229101,1775822662613,-32.07405954,0.00011683,2]
[420229102,1775822662738,-32.07405954,0.00011683,2]
[420229103,1775822662767,-4935.86188092,0.00011683,2]